fUST/lending_fUST_20260103
["ID","MTS","AMOUNT","RATE_DAILY","PERIOD"]
[400357315,1767429039190,-6669.42733936,0.00013169,2]
[400357316,1767429039200,-500.0,0.00013273,2]
[400357317,1767429039209,-225.47476248,0.00013273,2]
[400357318,1767429039218,-500.0,0.00013273,2]
[400357319,1767429039228,-150.0,0.00013342,2]
[400357320,1767429039237,-1080.92186024,0.00013451,2]
[400357321,1767429039247,-500.0,0.00013698,2]
[400357322,1767429039256,-500.0,0.00013698,2]
[400357323,1767429039266,-500.0,0.00013698,2]
[400357324,1767429039277,-500.0,0.00013698,2]
[400357325,1767429039286,-500.0,0.00013698,2]
[400357326,1767429039295,-500.0,0.00013698,2]
[400357327,1767429039305,-500.0,0.00013698,2]
[400357328,1767429039315,-500.0,0.00013698,2]
[400357329,1767429039324,-500.0,0.00013698,2]
[400357330,1767429039334,-500.0,0.00013698,2]
[400357331,1767429039343,-500.0,0.00013698,2]
[400357332,1767429039352,-500.0,0.00013698,2]
[400357333,1767429039362,-500.0,0.00013698,2]
[400357334,1767429039371,-500.0,0.00013698,2]
[400357335,1767429039380,-180.00540016,0.00013699,2]
[400357336,1767429039389,-470.3499274,0.00013699,2]
[400357337,1767429039400,-500.0,0.00013699,2]
[400357338,1767429039413,-500.0,0.00013699,2]
[400357339,1767429039422,-500.0,0.00013699,2]
[400357340,1767429039431,-150.0,0.00013699,2]
[400357341,1767429039441,-150.0,0.00013699,2]
[400357342,1767429039451,-150.0,0.00013699,2]
[400357343,1767429039460,-150.0,0.00013699,2]
[400357344,1767429039470,-150.0,0.00013699,2]
[400357345,1767429039480,-150.0,0.00013699,2]
[400357346,1767429039489,-150.0,0.00013699,2]
[400357347,1767429039498,-150.0,0.00013699,2]
[400357348,1767429039507,-150.0,0.00013699,2]
[400357349,1767429039516,-150.0,0.00013699,2]
[400357350,1767429039525,-150.0,0.00013699,2]
[400357351,1767429039534,-214.72,0.000138,2]
[400357352,1767429039544,-237.08074428,0.00013821,2]
[400357353,1767429039553,-150.0,0.00013836,2]
[400357354,1767429039563,-150.0,0.00013836,2]
[400357355,1767429039572,-150.0,0.00013836,2]
[400357356,1767429039582,-150.0,0.00013836,2]
[400357357,1767429039591,-150.0,0.00013836,2]
[400357358,1767429039602,-150.0,0.00013836,2]
[400357359,1767429039611,-150.0,0.00013836,2]
[400357360,1767429039621,-150.0,0.00013836,2]
[400357361,1767429039630,-150.0,0.00013973,2]
[400357362,1767429039639,-150.0,0.00013973,2]
[400357363,1767429039648,-150.0,0.00013973,2]
[400357364,1767429039658,-150.0,0.00013973,2]
[400357365,1767429039667,-150.0,0.00013973,2]
[400357366,1767429039679,-150.0,0.00013973,2]
[400357367,1767429039703,-214.72,0.000141,2]
[400357368,1767429039719,-150.0,0.0001411,2]
[400357369,1767429039739,-150.0,0.0001411,2]
[400357370,1767429039761,-1000.0,0.00014247,2]
[400357371,1767429039781,-481.24738406,0.00014247,2]
[400357372,1767429039801,-150.0,0.00014247,2]
[400357373,1767429039819,-150.0,0.00014247,2]
[400357374,1767429039839,-165.51,0.00014295,2]
[400357375,1767429039856,-150.0,0.00014384,2]
[400357376,1767429039870,-214.72,0.000144,2]
[400357377,1767429039888,-150.0,0.00014521,2]
[400357378,1767429039907,-214.72,0.000147,2]
[400357379,1767429039928,-100000.0,0.00014736,2]
[400357380,1767429039946,-287.42306704,0.00014777,2]
[400357381,1767429039959,-500.0,0.00014794,2]
[400357382,1767429039977,-1500.0,0.00014795,2]
[400357383,1767429039996,-453.86152314,0.000149,2]
[400357384,1767429040013,-453.86152314,0.000149,2]
[400357385,1767429040028,-453.86152314,0.000149,2]
[400357386,1767429040042,-501.07960354,0.00015,2]
[400357387,1767429040057,-214.72,0.00015,2]
[400357388,1767429040074,-230.35387768,0.00015034,2]
[400357389,1767429040089,-299.673338,0.00015068,2]
[400357390,1767429040105,-800.0,0.00015068,2]
[400357391,1767429040120,-312.42,0.000151,2]
[400357392,1767429040135,-2176.266,0.00015176,2]
[400357393,1767429040149,-1422.827,0.00015176,2]
[400357394,1767429040164,-630.228,0.00015176,2]
[400357395,1767429040180,-416.0,0.00015176,2]
[400357396,1767429040196,-178.0,0.00015176,2]
[400357397,1767429040212,-198.61,0.00015248,2]
[400357398,1767429040228,-214.72,0.000153,2]
[400357399,1767429040243,-2000.0,0.00015342,2]
[400357400,1767429040258,-152.42,0.00015585,2]
[400357401,1767429040274,-214.72,0.000156,2]
[400357402,1767429040289,-2500.0,0.0001589,2]
[400357403,1767429040305,-214.72,0.000159,2]
[400357404,1767429040320,-168.0,0.00016003,2]
[400357405,1767429040337,-168.0,0.00016028,2]
[400357406,1767429040352,-1539.11597168,0.00016109,2]
[400357407,1767429040368,-1093.84384208,0.00016164,2]
[400357408,1767429040384,-214.72,0.000162,2]
[400357409,1767429040401,-231.71,0.00016201,2]
[400357410,1767429040417,-1875.72960853,0.00016311,2]
[400357411,1767429040433,-16747.09203742,0.00016338,2]
[400357412,1767429040449,-500.0,0.00016411,2]
[400357413,1767429040465,-500.0,0.00016411,2]
[400357415,1767429040481,-500.0,0.00016411,2]
[400357416,1767429040497,-500.0,0.00016411,2]
[400357417,1767429040512,-500.0,0.00016411,2]
[400357418,1767429040527,-500.0,0.00016411,2]
[400357419,1767429040542,-500.0,0.00016411,2]
[400357420,1767429040559,-500.0,0.00016411,2]
[400357421,1767429040571,-500.0,0.00016411,2]
[400357422,1767429040581,-500.0,0.00016411,2]
[400357423,1767429040591,-500.0,0.00016411,2]
[400357424,1767429040601,-500.0,0.00016411,2]
[400357426,1767429040611,-500.0,0.00016411,2]
[400357427,1767429040809,-500.0,0.00016411,2]
[400357428,1767429040820,-500.0,0.00016411,2]
[400357429,1767429040830,-500.0,0.00016411,2]
[400357430,1767429040842,-484.05461293,0.00016411,2]
[400357431,1767429040851,-168.0,0.00016422,2]
[400357432,1767429040861,-366.84953749,0.00016438,2]
[400357433,1767429040871,-271.3632015,0.00016438,2]
[400357434,1767429040881,-837.7,0.00016438,2]
[400357435,1767429040891,-5811.30588873,0.00016438,2]
[400357436,1767429040900,-5811.30588873,0.00016438,2]
[400357437,1767429040910,-5811.30588873,0.00016438,2]
[400357438,1767429040919,-5811.30588873,0.00016438,2]
[400357439,1767429040929,-5811.30588873,0.00016438,2]
[400357440,1767429040939,-5811.30588873,0.00016438,2]
[400357441,1767429040949,-5811.30588873,0.00016438,2]
[400357442,1767429040959,-5811.30588873,0.00016438,2]
[400357443,1767429040968,-5811.30588873,0.00016438,2]
[400357444,1767429040977,-5811.30588873,0.00016438,2]
[400357445,1767429040987,-5811.30588873,0.00016438,2]
[400357446,1767429040996,-5811.30588873,0.00016438,2]
[400357447,1767429041006,-5811.30588873,0.00016438,2]
[400357448,1767429041015,-5811.30588873,0.00016438,2]
[400357449,1767429041025,-5811.30588873,0.00016438,2]
[400357450,1767429041034,-5811.30588873,0.00016438,2]
[400357451,1767429041043,-5811.30588873,0.00016438,2]
[400357452,1767429041052,-5811.30588873,0.00016438,2]
[400357453,1767429041062,-5811.30588873,0.00016438,2]
[400357454,1767429041071,-5811.30588873,0.00016438,2]
[400357455,1767429041081,-5811.30588873,0.00016438,2]
[400357456,1767429041090,-5811.30588873,0.00016438,2]
[400357457,1767429041099,-5811.30588873,0.00016438,2]
[400357458,1767429041109,-5811.30588873,0.00016438,2]
[400357459,1767429041118,-5811.30588873,0.00016438,2]
[400357460,1767429041127,-5811.30588873,0.00016438,2]
[400357461,1767429041136,-5811.30588873,0.00016438,2]
[400357462,1767429041146,-5811.30588873,0.00016438,2]
[400357463,1767429041155,-5811.30588873,0.00016438,2]
[400357464,1767429041165,-5811.30588873,0.00016438,2]
[400357465,1767429041174,-5811.30588873,0.00016438,2]
[400357466,1767429041183,-5811.30588873,0.00016438,2]
[400357467,1767429041192,-5811.30588873,0.00016438,2]
[400357468,1767429041202,-5811.30588873,0.00016438,2]
[400357469,1767429041211,-5811.30588873,0.00016438,2]
[400357470,1767429041220,-5811.30588873,0.00016438,2]
[400357471,1767429041229,-5811.30588873,0.00016438,2]
[400357472,1767429041239,-5811.30588873,0.00016438,2]
[400357473,1767429041248,-5811.30588873,0.00016438,2]
[400357474,1767429041258,-5811.30588873,0.00016438,2]
[400357475,1767429041268,-8924.39763673,0.00016438,2]
[400357476,1767429041278,-8924.39763673,0.00016438,2]
[400357477,1767429041287,-8924.39763673,0.00016438,2]
[400357478,1767429041299,-8924.39763673,0.00016438,2]
[400357479,1767429041308,-8924.39763673,0.00016438,2]
[400357480,1767429041317,-8924.39763673,0.00016438,2]
[400357481,1767429041327,-8924.39763673,0.00016438,2]
[400357482,1767429041337,-8924.39763673,0.00016438,2]
[400357483,1767429041346,-8924.39763673,0.00016438,2]
[400357484,1767429041355,-8924.39763673,0.00016438,2]
[400357485,1767429041365,-8924.39763673,0.00016438,2]
[400357486,1767429041375,-8924.39763673,0.00016438,2]
[400357487,1767429041383,-8924.39763673,0.00016438,2]
[400357488,1767429041393,-8924.39763673,0.00016438,2]
[400357489,1767429041409,-8924.39763673,0.00016438,2]
[400357490,1767429041419,-8924.39763673,0.00016438,2]
[400357491,1767429041429,-8924.39763673,0.00016438,2]
[400357492,1767429041438,-8924.39763673,0.00016438,2]
[400357493,1767429041450,-8924.39763673,0.00016438,2]
[400357494,1767429041459,-8924.39763673,0.00016438,2]
[400357495,1767429041469,-8924.39763673,0.00016438,2]
[400357496,1767429041481,-8924.39763673,0.00016438,2]
[400357497,1767429041490,-8924.39763673,0.00016438,2]
[400357498,1767429041501,-8924.39763673,0.00016438,2]
[400357499,1767429041511,-8924.39763673,0.00016438,2]
[400357500,1767429041521,-8924.39763673,0.00016438,2]
[400357501,1767429041531,-8924.39763673,0.00016438,2]
[400357502,1767429041540,-8924.39763673,0.00016438,2]
[400357503,1767429041550,-8924.39763672,0.00016438,2]
[400357504,1767429041560,-8924.39763672,0.00016438,2]
[400357505,1767429041569,-8924.39763672,0.00016438,2]
[400357506,1767429041579,-8924.39763672,0.00016438,2]
[400357507,1767429041590,-8924.39763672,0.00016438,2]
[400357508,1767429041599,-8924.39763672,0.00016438,2]
[400357509,1767429041609,-8924.39763672,0.00016438,2]
[400357510,1767429041618,-8924.39763672,0.00016438,2]
[400357511,1767429041628,-8924.39763672,0.00016438,2]
[400357512,1767429041637,-8924.39763672,0.00016438,2]
[400357513,1767429041647,-8924.39763672,0.00016438,2]
[400357514,1767429041657,-8924.39763672,0.00016438,2]
[400357515,1767429041667,-8924.39763672,0.00016438,2]
[400357516,1767429041676,-8924.39763672,0.00016438,2]
[400357517,1767429041686,-8924.39763672,0.00016438,2]
[400357518,1767429041695,-8924.39763672,0.00016438,2]
[400357519,1767429041705,-8924.39763672,0.00016438,2]
[400357520,1767429041716,-8924.39763672,0.00016438,2]
[400357521,1767429041725,-154.76883189,0.00016438,2]
[400357522,1767429041735,-151.0,0.00016438,2]
[400357523,1767429041745,-151.0,0.00016438,2]
[400357524,1767429041754,-151.0,0.00016438,2]
[400357525,1767429041764,-151.0,0.00016438,2]
[400357526,1767429041774,-151.0,0.00016438,2]
[400357527,1767429041783,-151.0,0.00016438,2]
[400357528,1767429041793,-151.0,0.00016438,2]
[400357529,1767429041804,-151.0,0.00016438,2]
[400357530,1767429041813,-151.0,0.00016438,2]
[400357531,1767429041824,-189.657011,0.00016438,2]
[400357532,1767429041835,-151.0,0.00016438,2]
[400357533,1767429041844,-151.0,0.00016438,2]
[400357534,1767429041853,-151.0,0.00016438,2]
[400357535,1767429041863,-151.0,0.00016438,2]
[400357536,1767429041873,-151.0,0.00016438,2]
[400357537,1767429041882,-151.0,0.00016438,2]
[400357538,1767429041892,-151.0,0.00016438,2]
[400357539,1767429041902,-151.0,0.00016438,2]
[400357540,1767429041911,-151.0,0.00016438,2]
[400357541,1767429041922,-151.0,0.00016438,2]
[400357542,1767429041932,-151.0,0.00016438,2]
[400357543,1767429041941,-151.0,0.00016438,2]
[400357544,1767429041951,-151.0,0.00016438,2]
[400357545,1767429041960,-153.207208,0.00016438,2]
[400357546,1767429041970,-164.0102757,0.00016438,2]
[400357547,1767429041979,-364.58115,0.00016438,2]
[400357548,1767429041989,-364.58115,0.00016438,2]
[400357549,1767429041998,-364.58115,0.00016438,2]
[400357550,1767429042008,-364.58115,0.00016438,2]
[400357551,1767429042017,-364.58115,0.00016438,2]
[400357552,1767429042027,-364.58115,0.00016438,2]
[400357553,1767429042036,-364.58115,0.00016438,2]
[400357554,1767429042046,-364.58115,0.00016438,2]
[400357555,1767429042056,-364.58115,0.00016438,2]
[400357556,1767429042065,-364.58115,0.00016438,2]
[400357557,1767429042075,-364.58115,0.00016438,2]
[400357558,1767429042085,-364.58115,0.00016438,2]
[400357559,1767429042094,-364.58115,0.00016438,2]
[400357560,1767429042103,-364.58115,0.00016438,2]
[400357561,1767429042113,-364.58115,0.00016438,2]
[400357562,1767429042122,-364.58115,0.00016438,2]
[400357563,1767429042132,-3000.0,0.00016438,2]
[400357564,1767429042142,-259.79445274,0.00016438,2]
[400357565,1767429042151,-183.48,0.0001644,2]
[400357566,1767429042161,-183.48,0.0001644,2]
[400357567,1767429042170,-183.48,0.0001644,2]
[400357568,1767429042180,-183.48,0.0001644,2]
[400357569,1767429042190,-168.0,0.00016469,2]
[400357570,1767429042199,-200.0,0.00016473,2]
[400357571,1767429042209,-214.72,0.000165,2]
[400357572,1767429042220,-150.01,0.000166,7]
[400357573,1767429042229,-168.0,0.00016692,2]
[400357574,1767429042239,-837.7,0.00016712,2]
[400357575,1767429042249,-600.0,0.00016766,2]
[400357576,1767429042258,-1011.13,0.000168,5]
[400357577,1767429042268,-214.72,0.000169,2]
[400357578,1767429042278,-837.7,0.00016986,2]
[400357579,1767429042287,-3500.0,0.00016986,2]
[400357580,1767429042297,-561.96649894,0.00017,2]
[400357581,1767429042306,-265.49260479,0.00017034,2]
[400357582,1767429042317,-264.82,0.00017154,2]
[400357583,1767429042326,-214.72,0.000172,2]
[400357584,1767429042337,-837.7,0.0001726,2]
[400357585,1767429042347,-152.0,0.0001726,3]
[400357586,1767429042356,-1005.246602,0.000175,2]
[400357587,1767429042365,-214.72,0.000175,2]
[400357588,1767429042374,-500.0,0.00017534,7]
[400357589,1767429042384,-837.7,0.00017534,2]
[400357590,1767429042393,-4000.0,0.00017534,2]
[400357591,1767429042407,-150000.0,0.00017765,2]
[400357592,1767429042418,-151.0,0.00017765,2]
[400357593,1767429042427,-151.0,0.00017765,2]
[400357594,1767429042436,-151.0,0.00017765,2]
[400357595,1767429042447,-364.58115,0.00017765,2]
[400357596,1767429042456,-364.58115,0.00017765,2]
[400357597,1767429042465,-364.58115,0.00017765,2]
[400357598,1767429042477,-364.58116,0.00017765,2]
[400357599,1767429042488,-140735.4743642,0.000178,3]
[400357601,1767429043443,-3e-08,0.000178,3]
[400357643,1767429056001,150.0,0.00011012,2]
[400357644,1767429056493,150.0,0.00012013,2]
[400357646,1767429095360,-347.99,0.000129,2]
[400357648,1767429122924,150.0,0.00010958,2]
[400357649,1767429123872,150.0,0.00011954,2]
[400357657,1767429142663,164.89,0.000129,2]
[400357700,1767429203300,344.33,0.000129,2]
[400357703,1767429259552,150.0,0.00010985,2]
[400357704,1767429259943,150.0,0.00011984,2]
[400357705,1767429261963,172.77,0.000129,2]
[400357706,1767429271645,-150.0,0.00012982,2]
[400357713,1767429326755,150.0,0.00010984,2]
[400357714,1767429327275,150.0,0.00011982,2]
[400357715,1767429327763,150.0,0.00012981,2]
[400357726,1767429452383,299.99999901,0.00011,2]
[400357728,1767429479978,217.2,8.238e-05,2]
[400357729,1767429480241,217.2,8.238e-05,2]
[400357730,1767429480576,217.2,8.238e-05,2]
[400357740,1767429624345,200.0,0.00028035,120]
[400357741,1767429624674,200.0,0.00028035,120]
[400357742,1767429626041,200.0,0.00028035,120]
[400357743,1767429626380,200.0,0.00028035,120]
[400357744,1767429627803,200.0,0.00028035,120]
[400357745,1767429628141,200.0,0.00028035,120]
[400357849,1767430046902,5000.0,0.00012982,2]
[400357852,1767430063651,3298.41000099,0.00012982,2]
[400357853,1767430063673,1701.58999901,0.00012982,2]
[400357854,1767430071840,5000.0,0.00012982,2]
[400357856,1767430096168,3298.42000099,0.00012982,2]
[400357857,1767430096192,1268.77439451,0.00012982,2]
[400357894,1767430214297,3164.56102177,0.0001298,2]
[400357895,1767430228878,150.0,0.00011508,2]
[400357896,1767430229376,150.0,0.00012554,2]
[400357911,1767430237812,-173.61,0.00013,2]
[400357912,1767430237822,-173.61,0.000133,2]
[400357913,1767430237832,-186.70377001,0.00013411,2]
[400357914,1767430237841,-173.61,0.000136,2]
[400357915,1767430237851,-150.0,0.000136,2]
[400357916,1767430237861,-300.0,0.00013673,2]
[400357917,1767430237871,-330.734172,0.00013699,2]
[400357918,1767430237883,-1167.579961,0.00013699,2]
[400357919,1767430237893,-500.0,0.00013699,2]
[400357920,1767430237903,-173.61,0.000139,2]
[400357921,1767430237912,-1041.66666667,0.00014224,2]
[400357922,1767430237924,-1000.0,0.00014247,2]
[400357923,1767430237934,-173.61,0.000143,2]
[400357924,1767430237944,-173.61,0.000146,2]
[400357925,1767430237954,-300.0,0.00014721,2]
[400357926,1767430237964,-500.0,0.00014721,2]
[400357927,1767430237974,-500.0,0.00014721,2]
[400357928,1767430237984,-622.19507972,0.00014721,2]
[400357929,1767430237993,-500.0,0.00014721,2]
[400357930,1767430238004,-500.0,0.00014721,2]
[400357931,1767430238014,-500.0,0.00014721,2]
[400357932,1767430238024,-500.0,0.00014721,2]
[400357933,1767430238034,-500.0,0.00014721,2]
[400357934,1767430238045,-500.0,0.00014721,2]
[400357935,1767430238055,-500.0,0.00014721,2]
[400357936,1767430238066,-268.60404117,0.00014721,2]
[400357937,1767430238077,-500.0,0.00014721,2]
[400357938,1767430238087,-259.31751784,0.00014721,2]
[400357939,1767430238097,-500.0,0.00014721,2]
[400357940,1767430238108,-500.0,0.00014721,2]
[400357941,1767430238117,-427.14353971,0.00014721,2]
[400357942,1767430238128,-1000000.0,0.00014722,2]
[400357943,1767430238138,-100000.0,0.00014736,2]
[400357944,1767430238148,-1500.0,0.00014795,2]
[400357945,1767430238159,-21433.4776026,0.00014822,2]
[400357946,1767430238169,-173.61,0.000149,2]
[400357947,1767430238178,-22476.7153905,0.00014927,2]
[400357948,1767430238188,-173.61,0.000152,2]
[400357949,1767430238198,-2000.0,0.00015342,2]
[400357950,1767430238207,-220.31044862,0.00015411,2]
[400357951,1767430238218,-173.61,0.000156,2]
[400357952,1767430238227,-259.22233123,0.00015666,2]
[400357953,1767430238237,-251.79035134,0.00015666,2]
[400357954,1767430238247,-250.0,0.00015666,2]
[400357955,1767430238257,-151.54965873,0.00015666,2]
[400357956,1767430238267,-269.61503092,0.00015666,2]
[400357957,1767430238277,-151.0,0.00015666,2]
[400357958,1767430238287,-2674.60743027,0.00015666,2]
[400357959,1767430238297,-287.42306704,0.00015666,2]
[400357960,1767430238307,-250.0,0.00015666,2]
[400357961,1767430238317,-2500.0,0.0001589,2]
[400357962,1767430238327,-173.61,0.000159,2]
[400357963,1767430238337,-352.0,0.00016116,2]
[400357964,1767430238346,-500.0,0.00016156,2]
[400357965,1767430238356,-173.61,0.000162,2]
[400357966,1767430238366,-767.9,0.00016438,2]
[400357967,1767430238375,-7490.99250729,0.00016438,2]
[400357968,1767430238385,-7490.99250729,0.00016438,2]
[400357969,1767430238395,-7490.99250729,0.00016438,2]
[400357970,1767430238404,-7490.99250729,0.00016438,2]
[400357971,1767430238414,-7490.99250729,0.00016438,2]
[400357972,1767430238424,-7490.99250729,0.00016438,2]
[400357973,1767430238434,-7490.99250729,0.00016438,2]
[400357974,1767430238443,-7490.99250729,0.00016438,2]
[400357975,1767430238453,-7490.99250729,0.00016438,2]
[400357976,1767430238463,-7490.99250729,0.00016438,2]
[400357977,1767430238473,-7490.99250729,0.00016438,2]
[400357978,1767430238483,-7490.99250729,0.00016438,2]
[400357979,1767430238613,-7490.99250729,0.00016438,2]
[400357980,1767430238625,-7490.99250729,0.00016438,2]
[400357981,1767430238635,-7490.99250729,0.00016438,2]
[400357982,1767430238645,-7490.99250729,0.00016438,2]
[400357983,1767430238656,-7490.99250729,0.00016438,2]
[400357984,1767430238665,-7490.99250729,0.00016438,2]
[400357985,1767430238676,-7490.99250729,0.00016438,2]
[400357986,1767430238686,-7490.99250729,0.00016438,2]
[400357987,1767430238696,-7490.99250729,0.00016438,2]
[400357988,1767430238705,-7490.99250729,0.00016438,2]
[400357989,1767430238715,-7490.99250729,0.00016438,2]
[400357990,1767430238725,-7490.99250729,0.00016438,2]
[400357991,1767430238735,-7490.99250729,0.00016438,2]
[400357992,1767430238748,-7490.99250729,0.00016438,2]
[400357993,1767430238757,-7490.99250729,0.00016438,2]
[400357994,1767430238768,-7490.99250729,0.00016438,2]
[400357995,1767430238779,-7490.99250729,0.00016438,2]
[400357996,1767430238789,-7490.99250729,0.00016438,2]
[400357997,1767430238799,-7490.99250729,0.00016438,2]
[400357998,1767430238810,-7490.99250729,0.00016438,2]
[400357999,1767430238820,-7490.99250729,0.00016438,2]
[400358000,1767430238830,-7490.99250729,0.00016438,2]
[400358001,1767430238839,-7490.99250729,0.00016438,2]
[400358002,1767430238849,-7490.99250729,0.00016438,2]
[400358003,1767430238859,-7490.99250729,0.00016438,2]
[400358004,1767430238869,-7490.99250729,0.00016438,2]
[400358005,1767430238879,-7490.99250729,0.00016438,2]
[400358006,1767430238889,-7490.99250729,0.00016438,2]
[400358007,1767430238900,-7490.99250729,0.00016438,2]
[400358008,1767430238910,-7490.99250729,0.00016438,2]
[400358009,1767430238920,-7490.99250729,0.00016438,2]
[400358010,1767430238930,-7490.99250729,0.00016438,2]
[400358011,1767430238941,-7490.99250729,0.00016438,2]
[400358012,1767430238951,-7490.99250729,0.00016438,2]
[400358013,1767430238961,-7490.99250729,0.00016438,2]
[400358014,1767430238972,-7490.99250729,0.00016438,2]
[400358015,1767430238983,-7490.99250729,0.00016438,2]
[400358016,1767430238994,-7490.99250729,0.00016438,2]
[400358017,1767430239003,-7490.99250729,0.00016438,2]
[400358018,1767430239014,-7490.99250729,0.00016438,2]
[400358019,1767430239027,-7490.99250729,0.00016438,2]
[400358020,1767430239040,-7490.99250729,0.00016438,2]
[400358021,1767430239051,-7490.99250729,0.00016438,2]
[400358022,1767430239061,-7490.99250729,0.00016438,2]
[400358023,1767430239072,-7490.99250729,0.00016438,2]
[400358024,1767430239082,-7490.99250729,0.00016438,2]
[400358025,1767430239094,-7490.99250729,0.00016438,2]
[400358026,1767430239106,-7490.99250729,0.00016438,2]
[400358027,1767430239116,-7490.99250729,0.00016438,2]
[400358028,1767430239127,-7490.99250729,0.00016438,2]
[400358029,1767430239138,-164.0102757,0.00016438,2]
[400358030,1767430239148,-3000.0,0.00016438,2]
[400358031,1767430239158,-259.79445274,0.00016438,2]
[400358032,1767430239169,-183.48,0.0001644,2]
[400358033,1767430239180,-183.48,0.0001644,2]
[400358034,1767430239189,-183.48,0.0001644,2]
[400358035,1767430239200,-183.48,0.0001644,2]
[400358036,1767430239210,-200.0,0.00016473,2]
[400358037,1767430239221,-173.61,0.000165,2]
[400358038,1767430239232,-767.9,0.00016612,2]
[400358039,1767430239243,-150.5,0.00016612,2]
[400358040,1767430239253,-150.5,0.00016612,2]
[400358041,1767430239262,-150.5,0.00016612,2]
[400358042,1767430239272,-150.5,0.00016612,2]
[400358043,1767430239282,-150.48,0.00016612,2]
[400358044,1767430239291,-767.9,0.00016712,2]
[400358045,1767430239301,-173.61,0.000168,2]
[400358046,1767430239311,-168.0,0.00016892,2]
[400358047,1767430239320,-767.9,0.00016986,2]
[400358048,1767430239330,-3500.0,0.00016986,2]
[400358049,1767430239340,-173.61,0.000172,2]
[400358050,1767430239349,-767.9,0.0001726,2]
[400358051,1767430239358,-168.0,0.00017306,2]
[400358052,1767430239368,-1026.07731445,0.0001741,2]
[400358053,1767430239377,-253.91712722,0.00017411,2]
[400358054,1767430239387,-1728.58266422,0.00017424,2]
[400358055,1767430239397,-302.0,0.00017442,2]
[400358056,1767430239407,-1005.246602,0.000175,2]
[400358057,1767430239416,-173.61,0.000175,2]
[400358058,1767430239426,-767.9,0.00017534,2]
[400358059,1767430239436,-4000.0,0.00017534,2]
[400358060,1767430239446,-349.0,0.00017625,2]
[400358061,1767430239455,-500.0,0.00017673,2]
[400358063,1767430239464,-500.0,0.00017673,2]
[400358064,1767430239474,-500.0,0.00017673,2]
[400358066,1767430239483,-500.0,0.00017673,2]
[400358067,1767430239493,-500.0,0.00017673,2]
[400358068,1767430239503,-500.0,0.00017673,2]
[400358069,1767430239512,-500.0,0.00017673,2]
[400358070,1767430239523,-500.0,0.00017673,2]
[400358071,1767430239532,-500.0,0.00017673,2]
[400358072,1767430239542,-500.0,0.00017673,2]
[400358073,1767430239552,-500.0,0.00017673,2]
[400358074,1767430239562,-500.0,0.00017673,2]
[400358076,1767430239572,-500.0,0.00017673,2]
[400358078,1767430239582,-500.0,0.00017673,2]
[400358080,1767430239591,-500.0,0.00017673,2]
[400358081,1767430239602,-500.0,0.00017673,2]
[400358082,1767430239611,-484.05461293,0.00017673,2]
[400358083,1767430239620,-972.294013,0.000178,2]
[400358084,1767430239630,-972.294013,0.000178,2]
[400358085,1767430239640,-972.294013,0.000178,2]
[400358086,1767430239649,-972.294013,0.000178,2]
[400358087,1767430239659,-151.0,0.000178,2]
[400358088,1767430239668,-151.0,0.000178,2]
[400358089,1767430239678,-151.0,0.000178,2]
[400358090,1767430239688,-250000.0,0.000178,3]
[400358091,1767430239698,-173.61,0.000178,2]
[400358092,1767430239707,-551.0,0.00017805,3]
[400358093,1767430239717,-767.9,0.00017808,2]
[400358094,1767430239727,-441.0,0.0001783,2]
[400358095,1767430239737,-400.0,0.00017842,2]
[400358096,1767430239751,-8421.08127074,0.000179,2]
[400358097,1767430239760,-15072.38283366,0.000179,2]
[400358098,1767430239770,-160.06458157,0.00017918,3]